bitfinex/quotes_ETHUSD_20241019
["timestamp","ask_amount","ask_price","bid_price","bid_amount"]
[1729341544353,4.99633059,2639.3,2638.9,0.40738343]
[1729341544660,4.99633059,2639.3,2639.0,0.15667683]
[1729341544866,4.99633059,2639.3,2638.8,3.41062]
[1729341545021,4.99633059,2639.3,2638.9,0.1566785]
[1729341545217,4.99633059,2639.3,2639.0,0.1566785]
[1729341545526,4.99633059,2639.3,2639.1,0.1566785]
[1729341545729,4.99633059,2639.3,2638.8,3.41062]
[1729341545930,4.99633059,2639.3,2638.9,0.40738397]
[1729341546159,4.99633059,2639.3,2639.0,0.15667704]
[1729341546330,4.99633059,2639.3,2639.1,0.15667704]
[1729341546531,4.99633059,2639.3,2638.8,3.41062]
[1729341546858,4.99633059,2639.3,2638.9,0.40742863]
[1729341547077,4.99633059,2639.3,2639.0,0.15669422]
[1729341547273,4.75025896,2639.3,2639.1,0.15669422]
[1729341547443,0.048553,2639.2,2638.8,3.41062]
[1729341547643,5.14947732,2639.3,2638.9,0.15669195]
[1729341547838,5.14947732,2639.3,2639.0,0.15669195]
[1729341548027,5.14947732,2639.3,2638.8,3.41062]
[1729341548028,3.16393837,2639.3,2638.8,3.41062]
[1729341548433,3.16393837,2639.3,2638.9,0.15670063]
[1729341548634,5.14947732,2639.3,2639.0,0.15670063]
[1729341548832,1.19147898,2639.1,2638.8,3.41062]
[1729341549134,1.19147898,2639.1,2638.9,0.1566898]
[1729341549335,1.19147898,2639.1,2639.0,0.1566898]
[1729341550654,2.38088873,2639.4,2639.0,3.5670098]
[1729341550891,2.38088873,2639.4,2639.0,3.41032]
[1729341551404,2.38088873,2639.4,2639.1,0.15672974]
[1729341551615,2.38088873,2639.4,2639.0,3.41032]
[1729341551911,2.38088873,2639.4,2639.0,3.41031]
[1729341552204,2.38088873,2639.4,2639.1,0.15673512]
[1729341552413,2.38088873,2639.4,2639.0,3.41031]
[1729341552584,2.38088873,2639.4,2639.1,0.1567576]
[1729341552793,2.38088873,2639.4,2639.0,3.41031]
[1729341553113,2.38088873,2639.4,2639.1,0.15675562]
[1729341553272,2.38088873,2639.4,2639.0,3.41031]
[1729341553474,2.38088873,2639.4,2639.1,0.15676592]
[1729341553675,2.38088873,2639.4,2639.0,3.41031]
[1729341553903,2.38088873,2639.4,2639.1,0.15676788]
[1729341554066,2.38088873,2639.4,2639.0,3.41031]
[1729341554273,2.38088873,2639.4,2639.1,0.15678378]
[1729341554583,2.38088873,2639.4,2639.0,3.41031]
[1729341554931,2.38088873,2639.4,2639.1,0.1567869]
[1729341555104,2.38088873,2639.4,2639.0,3.41031]
[1729341555301,1.98584268,2639.3,2639.1,0.15679419]
[1729341555522,1.58894608,2639.2,2639.0,3.41031]
[1729341555690,1.58894608,2639.2,2639.1,0.15680428]
[1729341556008,1.58894608,2639.2,2639.0,3.41031]
[1729341556183,1.58894608,2639.2,2639.1,0.15680393]
[1729341556583,2.90283994,2639.2,2639.1,0.15680393]
[1729341559529,2.90283994,2639.2,2639.1,0.15679001]
[1729341563351,1.31389386,2639.2,2639.1,0.15679001]
[1729341566237,1.98699956,2639.2,2639.1,0.15679001]
[1729341566649,1.98699956,2639.2,2639.0,3.41037]
[1729341566845,1.98699956,2639.2,2639.1,0.1567869]
[1729341567142,1.98699956,2639.2,2638.9,4.21502]
[1729341567353,1.98699956,2639.2,2639.0,0.15678396]
[1729341567354,1.59003754,2639.1,2639.0,0.15678396]
[1729341567499,2.9039314,2639.1,2639.0,0.15678396]
[1729341568346,1.31389386,2639.1,2639.0,0.15678396]
[1729341569787,3.30089342,2639.1,2639.0,0.15678396]
[1729341570336,3.30089342,2639.1,2639.0,0.15678403]
[1729341571532,0.59284328,2639.2,2639.0,0.15678403]
[1729341571772,0.59284328,2639.2,2638.9,3.41042]
[1729341571942,0.0429572,2639.0,2638.7,4.17233]
[1729341572143,0.59284328,2639.2,2638.8,0.15679411]
[1729341572144,4.00296328,2639.2,2638.8,0.15679411]
[1729341572371,4.00296328,2639.2,2638.9,0.15679411]
[1729341572543,0.39526251,2639.1,2638.7,4.17233]
[1729341572729,0.39526251,2639.1,2638.8,3.81834424]
[1729341572730,1.19286912,2638.9,2638.8,3.81834424]
[1729341572934,1.19286912,2638.9,2638.8,3.56743895]
[1729341573168,1.19286912,2638.9,2638.8,0.40770576]
[1729341573383,1.19286912,2638.9,2638.8,0.15679895]
[1729341573982,1.19286912,2638.9,2638.8,0.15679523]
[1729341574341,1.19286912,2638.9,2638.8,3.56743523]
[1729341574581,1.19286912,2638.9,2638.8,3.81832006]
[1729341574765,1e-08,2638.9,2638.8,3.56743523]
[1729341575583,0.39526251,2639.1,2638.8,3.56743523]
[1729341575905,0.39526251,2639.1,2638.9,0.15679523]
[1729341576037,0.39526251,2639.1,2638.8,3.41064]
[1729341576244,0.39526251,2639.1,2638.9,0.15677599]
[1729341576477,0.39526251,2639.1,2638.8,3.41064]
[1729341576680,0.39526251,2639.1,2638.9,0.15677583]
[1729341576880,0.39526251,2639.1,2638.8,3.41064]
[1729341577078,0.39526251,2639.1,2638.9,0.15677683]
[1729341577293,0.39526251,2639.1,2638.8,3.41064]
[1729341577497,0.39526251,2639.1,2638.9,0.1567733]
[1729341577789,0.39526251,2639.1,2638.7,4.17236]
[1729341577956,0.39526251,2639.1,2638.8,0.15677119]
[1729341578291,0.39526251,2639.1,2638.9,0.15677119]
[1729341578496,0.39526251,2639.1,2638.8,6.82126]
[1729341578661,2.38290423,2639.1,2638.9,0.15676393]
[1729341578988,2.38290423,2639.1,2638.8,3.41063]
[1729341579188,2.38290537,2639.1,2638.9,0.15676106]
[1729341579354,2.38290537,2639.1,2638.8,3.41063]
[1729341579555,2.38290537,2639.1,2638.9,0.15676188]
[1729341579801,2.38290537,2639.1,2638.8,3.41063]
[1729341579961,1.59009103,2639.0,2638.9,0.15677146]
[1729341581058,1.59009103,2639.0,2638.8,3.41057]
[1729341581396,1.59009103,2639.0,2638.9,0.15677468]
[1729341582004,1.98535354,2639.1,2638.9,0.15677468]
[1729341582157,1.98535354,2639.1,2638.8,3.41055]
[1729341582358,1.98535354,2639.1,2638.9,0.15676798]
[1729341582583,1.98535354,2639.1,2639.0,0.15676798]
[1729341586383,0.25220315,2639.1,2639.0,0.15676798]
[1729341587686,0.59284328,2639.2,2639.0,0.15676798]
[1729341587867,0.59284328,2639.2,2638.9,3.41048]
[1729341587868,2.58048614,2639.2,2638.9,3.41048]
[1729341588068,1.19266406,2639.0,2638.9,3.41048]
[1729341588270,1.19266406,2639.0,2638.9,3.56723852]
[1729341589009,2.58048614,2639.2,2638.9,3.56724034]
[1729341589314,2.58048614,2639.2,2639.0,0.15676034]
[1729341589600,2.58048614,2639.2,2638.9,3.41048]
[1729341589811,1.19269521,2639.0,2638.9,3.41048]
[1729341589968,2.58048614,2639.2,2638.9,3.5672464]
[1729341590171,2.58048614,2639.2,2639.0,0.1567664]
[1729341590490,2.58048614,2639.2,2638.9,3.41048]
[1729341590676,2.58048614,2639.2,2639.0,0.156768]
[1729341590871,2.58048614,2639.2,2638.9,3.41048]
[1729341591071,2.58048614,2639.2,2639.0,0.15676793]
[1729341591271,2.58048614,2639.2,2638.9,3.41048]
[1729341591510,2.58048614,2639.2,2639.0,0.15677351]
[1729341591684,2.58048614,2639.2,2638.9,3.41048]
[1729341591884,2.58048614,2639.2,2639.0,0.15677846]
[1729341592084,2.58048614,2639.2,2638.9,3.41048]
[1729341592297,2.58048614,2639.2,2639.0,0.1567869]
[1729341592498,2.58048614,2639.2,2638.9,3.41048]
[1729341592693,2.58048614,2639.2,2639.0,0.156792]
[1729341592895,2.58048614,2639.2,2638.9,3.41048]
[1729341593096,2.58048614,2639.2,2639.0,0.15679184]
[1729341593318,2.58048614,2639.2,2639.1,0.15679184]
[1729341593521,2.58087865,2639.2,2639.1,3.41025]
[1729341593725,2.58087865,2639.2,2639.1,4.17385]
[1729341594433,2.18323639,2639.2,2639.1,4.33064043]
[1729341594627,2.58087865,2639.2,2639.1,4.33064043]
[1729341594983,2.18324557,2639.2,2639.1,4.33064043]
[1729341595326,0.59284328,2639.2,2639.1,4.33064043]
[1729341595516,2.58087865,2639.2,2639.1,4.33064043]
[1729341595689,2.18324256,2639.2,2639.1,4.33064043]
[1729341596035,2.58087865,2639.2,2639.1,4.17385]
[1729341596327,2.58087865,2639.2,2639.1,4.33064505]
[1729341596528,2.18324958,2639.2,2639.1,4.33064505]
[1729341596888,0.59284328,2639.2,2639.1,4.33064505]
[1729341597090,2.1832529,2639.2,2639.1,4.17385]
[1729341597313,2.1832529,2639.2,2639.1,4.33063049]
[1729341600539,2.1832529,2639.2,2639.1,4.33058045]
[1729341601343,2.08612926,2639.2,2639.1,4.33058045]
[1729341601639,2.01039086,2639.2,2639.1,4.33058045]
[1729341601840,0.41998124,2639.2,2639.1,4.33058045]
[1729341602341,1.59040962,2639.2,2639.1,4.33058045]
[1729341602501,1.59040962,2639.2,2639.1,4.33053939]
[1729341603330,1.59040962,2639.3,2639.1,4.33053939]
[1729341603552,1.59040962,2639.2,2639.1,0.7636]
[1729341603840,1.59040962,2639.2,2639.1,0.15668964]
[1729341606239,1.59040962,2639.2,2639.1,0.15669637]
[1729341608654,1.98768141,2639.4,2639.1,0.15669637]
[1729341608655,1.59040962,2639.3,2639.1,0.15669637]
[1729341608947,1.59040962,2639.2,2639.0,3.41034]
[1729341609114,1.59040962,2639.2,2639.1,0.15668313]
[1729341609623,1.59040962,2639.3,2639.1,0.15668313]
[1729341609963,1.59040962,2639.2,2638.9,4.238]
[1729341610421,1.59040962,2639.2,2639.0,0.15671717]
[1729341610629,1.59040962,2639.2,2639.1,0.15671717]
[1729341613011,2.18328076,2639.2,2639.1,0.15671717]
[1729341613548,2.18328076,2639.2,2639.1,0.15674511]
[1729341616943,0.59287114,2639.2,2639.1,0.15674511]
[1729341617140,0.59287114,2639.2,2639.0,3.41038]
[1729341617461,1.59040962,2639.3,2639.1,0.15669059]
[1729341617641,1.59040962,2639.3,2639.2,0.15669059]
[1729341617847,1.59040962,2639.3,2639.0,3.41038]
[1729341618022,1.19243888,2639.1,2639.0,3.41038]
[1729341618556,1.59040962,2639.3,2639.0,3.41038]
[1729341619255,1.59040962,2639.3,2639.1,0.15671596]
[1729341619466,1.59040962,2639.3,2639.2,0.15671476]
[1729341619686,1.59040962,2639.3,2639.2,0.15671417]
[1729341622268,1.59040962,2639.3,2639.2,0.15669072]
[1729341624938,1.9873944,2639.4,2639.2,0.15669072]
[1729341625142,1.9873944,2639.4,2639.0,3.41038]
[1729341625340,1.98749281,2639.4,2639.1,0.1566804]
[1729341625639,1.98749281,2639.4,2639.2,0.1566804]
[1729341625840,1.98749281,2639.4,2639.0,3.41038]
[1729341626053,5.39736281,2639.4,2639.1,0.15667314]
[1729341626356,5.39736281,2639.4,2639.2,0.15667314]
[1729341626558,5.39736281,2639.4,2638.9,4.2381]
[1729341626724,5.39736281,2639.4,2639.0,0.40737777]
[1729341626925,5.39736281,2639.4,2639.1,0.15667466]
[1729341627120,5.39736281,2639.4,2638.9,4.2381]
[1729341627121,5.39736281,2639.4,2639.2,0.15667466]
[1729341627339,5.39736281,2639.4,2638.9,6.08304073]
[1729341627547,7.2e-07,2639.2,2639.0,0.40740187]
[1729341627759,7.2e-07,2639.2,2639.1,0.15668393]
[1729341628065,1.98749281,2639.4,2639.1,0.15668393]
[1729341628221,1.98749281,2639.4,2639.2,0.15668393]
[1729341628222,3.41006,2639.3,2639.2,0.15668393]
[1729341629069,3.41006,2639.3,2638.9,0.8276]
[1729341629366,5.39755281,2639.3,2639.0,0.15669465]
[1729341629570,5.39755281,2639.3,2638.9,4.23811]
[1729341629767,3.41006,2639.3,2639.1,0.15670848]
[1729341630075,3.41006,2639.3,2639.2,0.15670848]
[1729341630226,3.41006,2639.3,2638.9,4.23811]
[1729341630427,5.39791041,2639.3,2639.0,0.15673177]
[1729341630639,5.39791041,2639.3,2638.9,4.23811]
[1729341630640,3.41006,2639.3,2639.1,0.15673177]
[1729341630834,1.98785041,2639.4,2638.9,4.23811]
[1729341631063,5.39771041,2639.4,2639.0,0.40753358]
[1729341631266,5.39771041,2639.4,2639.1,0.15673459]
[1729341631431,5.39771041,2639.4,2639.2,0.15673459]
[1729341631630,5.39771041,2639.4,2638.9,4.23811]
[1729341631871,5.39771041,2639.4,2639.0,0.40752132]
[1729341632035,5.39771041,2639.4,2639.1,0.15672987]
[1729341632370,5.39771041,2639.4,2638.9,4.23811]
[1729341632595,5.39771041,2639.4,2639.0,0.4075322]
[1729341632732,5.39771041,2639.4,2639.1,0.15673274]
[1729341633069,5.39771041,2639.4,2639.2,0.15673274]
[1729341633281,1.59037835,2639.3,2638.9,4.23811]
[1729341633434,1.59038612,2639.2,2639.0,0.40743369]
[1729341633634,1.59038612,2639.2,2639.1,0.15669617]
[1729341634352,1.59038612,2639.3,2639.1,0.15669617]
[1729341634555,1.59038612,2639.3,2638.9,4.23811]
[1729341634556,1.59038612,2639.3,2639.2,0.15669617]
[1729341635045,5.39789957,2639.4,2639.2,0.15669617]
[1729341635246,1.59047969,2639.3,2638.9,4.23811]
[1729341635450,5.39789957,2639.4,2639.0,0.40748236]
[1729341635638,1.98803957,2639.3,2639.1,0.15671489]
[1729341635840,1.98803957,2639.3,2638.9,4.23811]
[1729341636174,5.39789957,2639.4,2639.0,0.40751843]
[1729341636350,5.39789957,2639.4,2639.1,0.1567313]
[1729341636544,5.39789957,2639.4,2639.2,0.1567313]
[1729341636750,5.39789957,2639.4,2638.9,4.23811]
[1729341636958,5.7e-07,2639.0,2638.9,4.23811]
[1729341637257,5.39789957,2639.4,2638.9,4.6456187]
[1729341637469,1.98803957,2639.4,2639.0,0.4075087]
[1729341637650,5.39790957,2639.4,2639.1,0.15672502]
[1729341637850,1.98803957,2639.3,2638.9,4.23809]
[1729341638061,5.39790957,2639.4,2639.0,0.40748679]
[1729341638234,5.39790957,2639.4,2639.1,0.15671659]
[1729341638442,1.98803957,2639.3,2638.9,4.23809]
[1729341638634,5.39790957,2639.4,2639.0,0.4075061]
[1729341638949,5.39790957,2639.4,2639.1,0.15672402]
[1729341639150,5.39790957,2639.4,2639.2,0.15672402]
[1729341639352,5.39790957,2639.4,2638.9,4.23809]
[1729341639689,5.39790957,2639.4,2639.0,0.40750145]
[1729341639878,8.80785957,2639.4,2639.1,0.15672223]
[1729341640082,5.39790957,2639.4,2639.2,0.15672223]
[1729341640240,5.39790957,2639.4,2638.9,4.23809]
[1729341640577,5.39790957,2639.4,2639.0,0.40750402]
[1729341640777,5.39790957,2639.4,2639.1,0.15672322]
[1729341640958,1.98803957,2639.3,2639.2,0.15672322]
[1729341641162,5.39790957,2639.4,2639.2,0.15672322]
[1729341641367,5.39790957,2639.4,2638.9,4.2381]
[1729341641549,5.39790957,2639.4,2639.0,0.40750824]
[1729341641748,5.39790957,2639.4,2639.1,0.15672484]
[1729341641955,5.39790957,2639.4,2639.2,0.15672484]
[1729341642178,5.39790957,2639.4,2638.9,4.2381]
[1729341642388,5.39790957,2639.4,2639.0,0.40752734]
[1729341642684,8.80786957,2639.4,2639.1,0.15673219]
[1729341642839,1.96666111,2639.3,2638.9,0.8276]
[1729341643040,1.96666111,2639.3,2639.0,0.15674026]
[1729341643341,1.96666111,2639.3,2639.1,0.15674026]
[1729341643553,1.96666111,2639.3,2638.9,0.8276]
[1729341643750,3.40987,2639.4,2639.0,0.15674836]
[1729341643966,3.40987,2639.4,2639.1,0.15674836]
[1729341644171,3.40987,2639.4,2638.9,4.23807]
[1729341644480,3.40987,2639.4,2639.0,0.40755354]
[1729341644798,3.40987,2639.4,2639.1,0.15674227]
[1729341645004,3.40987,2639.4,2639.2,0.15674227]
[1729341645298,3.40987,2639.4,2638.9,0.8276]
[1729341645501,6.81985,2639.4,2639.0,0.15674509]
[1729341645787,3.40987,2639.4,2639.1,0.15674509]
[1729341646000,3.40987,2639.4,2639.2,0.15674509]
[1729341646167,3.40987,2639.4,2638.9,4.2381]
[1729341646373,3.40987,2639.4,2639.0,0.40753122]
[1729341646572,3.40987,2639.4,2639.1,0.15673368]
[1729341646760,3.40987,2639.4,2638.9,4.2381]
[1729341646957,3.40987,2639.4,2639.0,0.15673684]
[1729341647279,3.40987,2639.4,2639.1,0.15673684]
[1729341647474,3.40987,2639.4,2638.9,4.2381]
[1729341647688,3.40987,2639.4,2639.0,0.1567317]
[1729341647890,3.40987,2639.4,2638.9,4.2381]
[1729341648102,3.40987,2639.4,2639.0,0.40753869]
[1729341648391,3.40987,2639.4,2639.1,0.15673459]
[1729341648567,3.80498277,2639.5,2639.2,0.15673459]
[1729341648774,3.80498277,2639.5,2639.0,3.41038]
[1729341648999,3.80498277,2639.5,2639.1,0.15676458]
[1729341649165,3.80498277,2639.5,2639.2,0.15676458]
[1729341649370,3.80498277,2639.5,2639.0,3.41038]
[1729341649699,3.80498277,2639.5,2639.1,0.15678791]
[1729341649998,3.80498277,2639.5,2639.0,3.41038]
[1729341650158,3.80498277,2639.5,2639.1,0.15678698]
[1729341650359,3.80498277,2639.5,2639.2,0.15678698]
[1729341650559,3.80498277,2639.5,2639.0,3.41038]
[1729341650894,1.98866758,2639.4,2639.1,0.15678074]
[1729341651092,1.98866758,2639.4,2639.2,0.15678074]
[1729341651295,1.98866758,2639.4,2639.0,3.41038]
[1729341651492,1.43002644,2639.2,2639.0,3.41038]
[1729341651700,1.43002644,2639.3,2639.1,0.15677552]
[1729341651859,1.98866758,2639.4,2639.2,0.15677552]
[1729341652059,1.98866758,2639.4,2639.0,3.41038]
[1729341652257,1.98866758,2639.3,2639.1,0.15678402]
[1729341652464,1.98866758,2639.4,2639.2,0.15678402]
[1729341652688,1.98866758,2639.4,2639.0,3.41038]
[1729341652891,1.98866758,2639.4,2639.1,0.15678324]
[1729341653098,1.98866758,2639.4,2639.2,0.15678324]
[1729341653307,1.98866758,2639.4,2639.0,3.41038]
[1729341653478,1.98866758,2639.4,2639.1,0.15678381]
[1729341653680,5.39852758,2639.4,2639.2,0.15678381]
[1729341654005,5.39852758,2639.4,2638.9,4.23801]
[1729341654205,5.39849229,2639.4,2639.0,0.40764594]
[1729341654404,5.39849229,2639.4,2639.1,0.15677424]
[1729341654616,5.39849229,2639.4,2639.2,0.15677424]
[1729341654910,5.39849229,2639.4,2638.9,4.23801]
[1729341655069,5.39849229,2639.4,2639.0,0.40763579]
[1729341655270,5.39849229,2639.4,2638.9,4.23801]
[1729341655471,5.39849229,2639.4,2639.0,0.40764105]
[1729341655711,5.39849229,2639.4,2638.9,4.23801]
[1729341656048,1.98863229,2639.4,2639.0,3.81797488]
[1729341656205,1.98863229,2639.4,2639.1,0.15678158]
[1729341656371,1.98863229,2639.4,2639.2,0.15678158]
[1729341656706,1.98863229,2639.4,2639.0,3.41033]
[1729341656893,1.98863229,2639.4,2639.1,0.1567745]
[1729341657065,1.98863229,2639.4,2639.2,0.1567745]
[1729341657270,1.98863229,2639.4,2639.0,3.41033]
[1729341657474,1.98863229,2639.4,2639.1,0.15677676]
[1729341657674,1.98863229,2639.4,2639.2,0.15677676]
[1729341657868,1.98863229,2639.4,2639.0,3.41033]
[1729341658114,1.98863229,2639.4,2639.1,0.15677599]
[1729341658278,1.98863229,2639.4,2639.2,0.15677599]
[1729341658481,1.98863229,2639.4,2639.0,3.41033]
[1729341658679,1.98863229,2639.4,2639.1,0.15529813]
[1729341658897,1.98863229,2639.4,2639.2,0.15529813]
[1729341659210,1.98863229,2639.4,2639.0,3.41033]
[1729341659403,1.98863229,2639.4,2639.1,0.15529152]
[1729341659598,1.59100095,2639.3,2639.2,0.15529152]
[1729341660520,1.98875301,2639.4,2639.2,0.15529152]
[1729341660716,1.98875301,2639.4,2639.0,3.41033]
[1729341661023,1.98875301,2639.4,2639.1,0.15529699]
[1729341661217,1.98875301,2639.4,2639.0,3.41033]
[1729341661218,1.98875301,2639.4,2639.2,0.15529699]
[1729341661414,1.98875301,2639.4,2639.0,3.41033]
[1729341661722,1.98875301,2639.4,2639.1,0.15528715]
[1729341661886,1.98875301,2639.4,2639.2,0.15528715]
[1729341662183,1.98875301,2639.4,2639.0,3.41033]
[1729341662384,1.98876435,2639.4,2639.1,0.15529412]
[1729341662623,1.98876435,2639.4,2639.0,3.41033]
[1729341662915,1.98876435,2639.4,2639.1,0.1553011]
[1729341663113,1.98876435,2639.4,2639.2,0.1553011]
[1729341663313,1.98876435,2639.4,2639.0,3.41033]
[1729341663623,1.98876435,2639.4,2639.1,0.15529813]
[1729341663806,1.98876435,2639.4,2639.2,0.15529813]
[1729341664004,1.98876435,2639.4,2639.0,3.4103]
[1729341664215,1.98876435,2639.4,2639.1,0.15528797]
[1729341664400,1.98876435,2639.4,2639.0,3.4103]
[1729341664599,1.98876435,2639.4,2639.1,0.155297]
[1729341664934,5.39865435,2639.4,2639.2,0.15529636]
[1729341665087,5.39865435,2639.4,2638.9,4.2381]
[1729341665521,5.39865435,2639.4,2639.0,0.15530603]
[1729341665683,5.39865435,2639.4,2639.1,0.15530603]
[1729341665881,5.39865435,2639.4,2638.9,4.2381]
[1729341666193,5.39865435,2639.4,2639.0,0.15530317]
[1729341666401,5.39865435,2639.4,2639.1,0.15530317]
[1729341666601,1.98876435,2639.3,2638.9,4.2381]
[1729341666798,1.98876435,2639.3,2639.0,0.15530403]
[1729341667125,1.98874225,2639.3,2639.1,0.15530403]
[1729341667319,1.98874225,2639.3,2638.9,4.2381]
[1729341667534,1.98874225,2639.3,2639.0,0.15529656]
[1729341667693,1.98874225,2639.3,2639.1,0.15529656]
[1729341668027,1.98874225,2639.3,2638.9,4.2381]
[1729341668229,1.98874225,2639.3,2639.0,0.15529915]
[1729341668431,1.98874225,2639.3,2639.1,0.15529915]
[1729341668727,1.59093674,2639.2,2638.9,4.2381]
[1729341668929,1.59093674,2639.2,2639.0,0.15528243]
[1729341669098,1.98874225,2639.3,2639.1,0.15528243]
[1729341669300,1.98874225,2639.4,2639.2,0.8066]
[1729341669627,1.98874225,2639.5,2639.2,0.8066]
[1729341669931,1.98874225,2639.5,2639.3,3.40999]
[1729341670330,1.98874225,2639.5,2639.2,0.8066]
[1729341670633,1.98874225,2639.5,2639.2,4.21666]
[1729341670800,1.98874225,2639.5,2639.3,0.1552326]
[1729341671007,1.98874225,2639.6,2639.2,4.21666]
[1729341671204,1.98874225,2639.6,2639.3,0.15523061]
[1729341671406,1.98874225,2639.6,2639.2,4.21666]
[1729341671611,1.98874225,2639.6,2639.3,0.15520823]
[1729341671811,1.988279,2639.6,2639.2,4.21666]
[1729341673309,1.988279,2639.6,2639.3,0.15521637]
[1729341673310,1.19281968,2639.4,2639.3,0.15521637]
[1729341673830,1.988279,2639.6,2639.2,4.21666]
[1729341674036,0.06137673,2639.3,2639.2,4.21666]
[1729341674202,0.06137673,2639.3,2639.2,4.37188211]
[1729341674402,1.988279,2639.6,2639.3,4.21647]
[1729341674606,5.79518481,2639.9,2639.3,4.21647]
[1729341674607,1.988279,2639.7,2639.4,3.564941]
[1729341674796,1.988279,2639.7,2639.3,4.21647]
[1729341674797,1.988279,2639.7,2639.5,3.40973]
[1729341674995,1.988279,2639.8,2639.5,3.40973]
[1729341676637,1.9871207,2639.8,2639.5,3.40973]
[1729341677091,1.58968483,2639.7,2639.3,4.21647]
[1729341677300,1.58968483,2639.7,2639.4,3.40985]
[1729341677495,2.18249898,2639.7,2639.3,4.21647]
[1729341677691,2.18249898,2639.7,2639.3,7.62639]
[1729341678101,2.18249898,2639.7,2639.4,3.40983]
[1729341679129,2.18249898,2639.7,2639.3,4.21655]
[1729341681048,2.18249898,2639.7,2639.3,7.62646]
[1729341682838,2.18249898,2639.7,2639.4,3.40986]
[1729341683147,1.78457548,2639.7,2639.4,3.40986]
[1729341688183,1.78457548,2639.7,2639.3,0.8066]
[1729341688854,1.78457548,2639.7,2639.4,0.15505615]
[1729341689050,1.78457548,2639.7,2639.3,4.21658]
[1729341689489,4.99903483,2639.8,2639.3,4.21658]
[1729341689490,1.58968483,2639.8,2639.3,0.8066]
[1729341689776,5.39374556,2639.8,2639.3,4.21658]
[1729341691671,1.58968483,2639.7,2639.3,4.21658]
[1729341691847,5.39374556,2639.8,2639.3,4.21658]
[1729341693577,1.58968483,2639.7,2639.3,4.21658]
[1729341693753,4.99917483,2639.7,2639.3,4.21658]
[1729341694074,4.99917483,2639.7,2639.3,0.8066]
[1729341694640,3.40949,2639.7,2639.3,2.66708572]
[1729341694843,3.40949,2639.7,2639.3,0.8066]
[1729341695042,4.99917483,2639.7,2639.3,0.8066]
[1729341698460,0.06004928,2639.6,2639.3,0.8066]
[1729341701513,0.06004928,2639.6,2639.4,0.1552433]
[1729341701700,0.06004928,2639.6,2639.3,0.8066]
[1729341701884,0.06004928,2639.6,2639.4,0.15525518]
[1729341702086,0.06004928,2639.6,2639.3,0.8066]
[1729341702483,0.06004928,2639.6,2639.0,3.41036]
[1729341702772,3.36698914,2639.5,2639.1,0.40368113]
[1729341702972,3.36698914,2639.5,2639.2,0.15524676]
[1729341703290,3.36698914,2639.5,2639.3,0.15524676]
[1729341703481,3.36698914,2639.5,2639.0,6.07502455]
[1729341703682,3.36698914,2639.5,2639.1,0.40378083]
[1729341703893,3.36698914,2639.5,2639.2,0.15529131]
[1729341704097,3.36698914,2639.5,2639.3,0.15529131]
[1729341704312,1.58968483,2639.6,2639.0,9.48533455]
[1729341704472,3.40974,2639.5,2639.1,0.40378577]
[1729341704672,3.40974,2639.5,2639.2,0.15529321]
[1729341704982,3.40974,2639.5,2639.3,0.15529321]
[1729341705186,1.58968483,2639.6,2639.1,3.41024]
[1729341705387,3.40974,2639.5,2639.2,0.15529886]
[1729341705611,1.58968483,2639.6,2639.3,0.15529886]
[1729341705908,3.40974,2639.5,2639.0,7.59206]
[1729341706139,3.40974,2639.5,2639.1,0.40378188]
[1729341706418,4.99929483,2639.6,2639.0,9.48531455]
[1729341706627,1.58968483,2639.6,2639.1,3.81395417]
[1729341706775,1.58968483,2639.6,2639.2,0.15528723]
[1729341707115,1.58968483,2639.6,2639.1,3.41019]
[1729341707275,1.58968483,2639.6,2639.2,0.15528128]
[1729341707475,1.58968483,2639.6,2639.1,3.41019]
[1729341707476,1.19176467,2639.5,2639.1,3.41019]
[1729341707676,1.19176467,2639.4,2639.2,0.15527071]
[1729341708016,1.19176467,2639.4,2639.1,3.41019]
[1729341708313,1.19176467,2639.4,2639.2,0.15527393]
[1729341708520,1.19176467,2639.4,2639.1,3.41019]
[1729341708752,1.19176467,2639.4,2639.2,0.15526139]
[1729341708895,1.19176467,2639.4,2639.1,3.41019]
[1729341709096,1.19176467,2639.4,2639.2,0.15525823]
[1729341709310,1.19176467,2639.4,2639.1,3.41019]
[1729341709509,1.19176467,2639.4,2639.2,0.15524788]
[1729341709840,1.19176467,2639.4,2639.1,3.41019]
[1729341710206,1.19176467,2639.4,2639.2,0.15525224]
[1729341710410,1.19176467,2639.4,2639.1,3.41019]
[1729341710612,1.19176467,2639.4,2639.2,0.15524308]
[1729341710811,1.19176467,2639.4,2639.1,3.41019]
[1729341712842,1.19176467,2639.4,2639.2,0.15522161]
[1729341713009,1.19176467,2639.4,2639.1,3.41015]
[1729341713204,1.19176467,2639.4,2639.2,0.15521707]
[1729341713540,1.19176467,2639.4,2639.1,3.41015]
[1729341713834,1.19176467,2639.4,2639.2,3.4101]
[1729341714034,1.19176467,2639.4,2639.2,3.56531071]
[1729341714202,1.19176467,2639.4,2639.2,3.4101]
[1729341717714,1.19176467,2639.5,2639.3,0.15522318]
[1729341717920,1.19176467,2639.4,2639.2,3.4101]
[1729341719248,1.19176467,2639.5,2639.3,0.15525539]
[1729341719455,1.19176467,2639.4,2639.2,3.4101]
[1729341719640,1.19176467,2639.5,2639.3,0.15526976]
[1729341719996,1.19176467,2639.5,2639.2,3.4101]
[1729341720131,1.19176467,2639.5,2639.3,0.15527204]
[1729341720448,1.19176467,2639.5,2639.2,3.41006]
[1729341720608,1.19176467,2639.5,2639.3,0.15527939]
[1729341720813,1.58968483,2639.6,2639.2,3.41006]
[1729341720814,1.19176467,2639.4,2639.2,3.41006]
[1729341721013,1.19176467,2639.4,2639.3,0.15528305]
[1729341721563,1.19176467,2639.4,2639.3,0.1552898]
[1729341722058,0.05987306,2639.4,2639.2,6.82011]
[1729341722364,0.05987306,2639.4,2639.3,0.1553043]
[1729341722665,0.05987306,2639.4,2639.2,6.82011]
[1729341723033,0.05987306,2639.4,2639.3,0.15530478]
[1729341723738,0.05987306,2639.4,2639.2,6.82011]
[1729341724440,0.05987306,2639.4,2639.2,3.41005]
[1729341724837,0.05987306,2639.4,2639.2,6.8201]
[1729341725578,1.58968483,2639.5,2639.2,6.8201]
[1729341725736,1.58968483,2639.5,2639.2,3.41005]
[1729341726795,1.58968483,2639.5,2639.2,6.82008]
[1729341728891,1.58968483,2639.5,2639.2,3.41003]
[1729341730303,1.58968483,2639.5,2639.2,6.82007]
[1729341731089,1.58968483,2639.5,2639.3,3.40998]
[1729341731090,1.19229784,2639.4,2639.3,3.40998]
[1729341731301,1.19229784,2639.4,2639.0,0.7715]
[1729341731511,1.19229784,2639.4,2639.1,0.15534876]
[1729341731678,1.19229784,2639.4,2639.2,3.41005]
[1729341732401,1.19229784,2639.4,2639.3,0.15683952]
[1729341732984,1.19229784,2639.4,2639.3,0.40778631]